bitfinex-derivatives/quotes_SOLF0:USTF0_20240912
["timestamp","ask_amount","ask_price","bid_price","bid_amount"]
[1726151755437,45.75,136.27,136.16,3.305]
[1726151755637,1.2993,136.22,136.15,45.75]
[1726151756084,1.2993,136.22,136.17,3.3048]
[1726151756226,1.3782,136.28,136.18,45.75]
[1726151756436,1.2993,136.26,136.18,45.75]
[1726151757734,1.2993,136.26,136.2,45.75]
[1726151759132,1.2993,136.26,136.2,49.054]
[1726151759341,1.2993,136.26,136.2,45.75]
[1726151759782,1.2993,136.26,136.19,3.3041]
[1726151759944,1.2993,136.26,136.18,45.75]
[1726151760696,4.602,136.26,136.19,3.3043]
[1726151760839,1.2993,136.26,136.15,45.75]
[1726151761061,45.75,136.25,136.13,45.75]
[1726151761252,45.75,136.23,136.13,3.3056]
[1726151761641,3.3043,136.2,136.13,3.3055]
[1726151761833,45.75,136.23,136.13,3.3055]
[1726151762048,45.75,136.23,136.11,45.75]
[1726151762249,45.75,136.23,136.15,3.3052]
[1726151762444,45.75,136.23,136.11,45.75]
[1726151763040,45.75,136.2,136.11,45.75]
[1726151763240,2.6585,136.19,136.11,45.75]
[1726151763502,1.3226,136.24,136.13,45.75]
[1726151763769,1.3325,136.23,136.13,45.75]
[1726151765170,50.83543858,136.23,136.11,45.75]
[1726151765363,47.0825,136.23,136.11,45.75]
[1726151765549,45.75,136.2,136.09,45.75]
[1726151765742,45.75,136.13,135.99,6.6181]
[1726151766011,45.75,136.11,135.95,3.68355359]
[1726151766203,45.75,136.11,136.04,3.3078]
[1726151766354,45.75,136.11,136.01,45.75]
[1726151766580,2.6431,136.12,136.01,45.75]
[1726151767377,2.6431,136.12,135.95,3.75045911]
[1726151767378,45.75,136.09,135.98,45.75]
[1726151767569,45.75,136.09,135.96,45.75]
[1726151767763,45.75,136.07,136.0,3.3089]
[1726151768556,45.75,136.07,135.96,45.75]
[1726151769259,45.75,136.02,135.92,3.71737372]
[1726151769450,45.75,136.02,135.91,45.75]
[1726151769610,45.75,136.02,135.91,49.48832806]
[1726151769955,2.7368,136.04,135.91,49.48832806]
[1726151770181,45.75,136.02,135.91,45.75]
[1726151770376,45.75,136.02,135.89,185.39447411]
[1726151770752,45.75,135.99,135.92,3.3109]
[1726151770991,45.75,135.99,135.87,45.75]
[1726151771650,49.0594,135.99,135.87,45.75]
[1726151772252,45.75,135.97,135.85,45.75]
[1726151772656,45.75,135.95,135.85,45.75]
[1726151772867,2.6788,135.96,135.85,45.75]
[1726151773045,2.6788,135.96,135.87,45.75]
[1726151773486,2.6788,135.96,135.85,45.75]
[1726151773804,2.6788,135.96,135.9,3.3114]
[1726151773970,45.75,135.95,135.83,45.75]
[1726151774566,45.75,135.93,135.81,45.75]
[1726151775054,45.75,135.93,135.87,3.3119]
[1726151775349,45.75,135.93,135.81,45.75]
[1726151775551,45.75,135.93,135.89,3.3116]
[1726151775751,2.6788,135.96,135.86,3.67336424]
[1726151776056,2.6788,135.96,135.85,45.75]
[1726151776263,2.6788,135.96,135.87,45.75]
[1726151776665,45.75,135.94,135.83,45.75]
[1726151776878,48.4288,135.96,135.85,45.75]
[1726151777085,2.6788,135.96,135.85,45.75]
[1726151777258,2.6788,135.96,135.92,3.3107]
[1726151777490,2.6788,135.96,135.88,3.7186281]
[1726151777678,2.6788,135.96,135.87,45.75]
[1726151777679,45.75,135.98,135.87,45.75]
[1726151777849,1.3697,136.0,135.89,45.75]
[1726151778360,4.6789,136.0,135.93,3.3105]
[1726151778555,4.6789,136.0,135.89,45.75]
[1726151778556,1.3697,136.0,135.89,45.75]
[1726151778754,1.3697,136.0,135.89,49.51149488]
[1726151779016,1.3697,136.0,135.79,153.62655835]
[1726151779017,1.3697,136.0,135.87,45.75]
[1726151779156,45.75,135.98,135.87,45.75]
[1726151779759,1.3697,136.0,135.87,45.75]
[1726151780057,1.3697,136.0,135.89,45.75]
[1726151780399,45.75,135.99,135.86,3.72103288]
[1726151780560,45.75,135.99,135.87,45.75]
[1726151780754,45.75,135.99,135.87,49.38164864]
[1726151782059,45.75,135.97,135.87,49.38164864]
[1726151782415,3.3083,136.03,135.98,3.3094]
[1726151782595,1.4228,136.04,135.92,45.75]
[1726151782799,1.4228,136.04,135.94,45.75]
[1726151783824,3.3084,136.03,135.97,3.3095]
[1726151784087,1.4228,136.04,135.94,45.75]
[1726151784287,1.4228,136.04,135.98,3.3094]
[1726151784471,1.4228,136.04,135.94,45.75]
[1726151784957,45.75,136.03,135.92,49.41796645]
[1726151785161,45.75,136.03,135.92,45.75]
[1726151785369,45.75,136.03,135.92,49.47150316]
[1726151785760,45.75,136.03,135.92,45.75]
[1726151785979,3.3087,136.01,135.96,3.3098]
[1726151786196,45.75,136.03,135.96,3.3098]
[1726151786573,45.75,136.03,135.9,45.75]
[1726151786761,45.75,136.01,135.9,45.75]
[1726151787076,3.3094,135.99,135.93,3.3104]
[1726151787258,45.75,136.01,135.88,45.75]
[1726151787672,45.75,136.01,135.93,3.3105]
[1726151788158,3.3094,135.99,135.93,3.3105]
[1726151788423,45.75,135.99,135.88,49.40642006]
[1726151788754,3.31,135.96,135.9,3.3113]
[1726151789051,45.75,135.97,135.85,45.75]
[1726151789251,45.75,135.97,135.91,3.3109]
[1726151789662,45.75,135.97,135.86,45.75]
[1726151789858,45.75,135.97,135.86,49.34192231]
[1726151790101,45.75,135.95,135.83,45.75]
[1726151791010,45.75,135.95,135.72,212.86121101]
[1726151791011,45.75,135.92,135.87,3.312]
[1726151791134,45.75,135.92,135.81,45.75]
[1726151791426,2.7943,135.96,135.81,45.75]
[1726151791582,45.75,135.91,135.84,3.3126]
[1726151792165,3.65938028,135.94,135.79,199.37655835]
[1726151792364,45.75,135.89,135.79,150.0]
[1726151792608,45.75,135.89,135.8,3.74218002]
[1726151792814,45.75,135.89,135.79,195.75]
[1726151792988,45.75,135.89,135.79,199.4060683]
[1726151793179,45.75,135.89,135.84,3.3128]
[1726151793685,45.75,135.89,135.79,199.4060683]
[1726151793868,49.0618,135.89,135.83,3.3129]
[1726151794268,45.75,135.89,135.79,199.4060683]
[1726151794682,49.0618,135.89,135.79,199.4060683]
[1726151795094,49.0618,135.89,135.83,3.3129]
[1726151795377,45.75,135.91,135.81,45.75]
[1726151795568,2.7943,135.96,135.88,3.3117]
[1726151795813,45.75,135.94,135.83,45.75]
[1726151796079,2.7943,135.96,135.9,3.3113]
[1726151796269,2.7943,135.96,135.86,3.60082456]
[1726151796570,3.3106,135.94,135.88,3.3117]
[1726151796973,3.3102,135.95,135.85,45.75]
[1726151797173,3.3102,135.95,135.89,3.3114]
[1726151797566,3.3107,135.93,135.85,45.75]
[1726151797780,3.3107,135.93,135.83,45.75]
[1726151798086,3.3106,135.94,135.83,45.75]
[1726151798275,45.75,135.95,135.88,3.3118]
[1726151798971,1.4208,135.98,135.88,45.75]
[1726151799193,1.4208,135.98,135.9,45.75]
[1726151799878,2.5949,136.01,135.9,45.75]
[1726151800377,3.3091,136.0,135.94,3.3103]
[1726151800587,45.75,135.99,135.88,45.75]
[1726151800780,45.75,135.99,135.91,3.3109]
[1726151800966,45.75,135.97,135.84,45.75]
[1726151801185,1.3671,135.96,135.84,45.75]
[1726151801383,1.3671,135.96,135.88,3.3117]
[1726151801580,1.3671,135.96,135.84,49.47351828]
[1726151802490,3.311,135.92,135.86,3.3123]
[1726151802692,3.311,135.92,135.84,49.47351828]
[1726151802872,45.75,135.94,135.84,49.47351828]
[1726151803083,3.3108,135.93,135.87,3.3119]
[1726151803285,45.75,135.94,135.84,3.72351828]
[1726151803465,1.3671,135.96,135.72,205.17658761]
[1726151803466,45.75,135.9,135.72,205.17658761]
[1726151803755,45.75,135.92,135.8,45.75]
[1726151803959,2.6457,135.93,135.83,45.75]
[1726151804107,2.6457,135.93,135.89,3.3115]
[1726151804378,1.3671,135.96,135.85,45.75]
[1726151805881,3.3106,135.94,135.88,3.3118]
[1726151806075,1.3671,135.96,135.85,45.75]
[1726151806415,1.3671,135.96,135.88,3.3118]
[1726151806416,3.3107,135.93,135.88,3.3118]
[1726151806687,45.75,135.95,135.85,45.75]
[1726151806870,3.3107,135.93,135.85,45.75]
[1726151807065,45.75,135.95,135.85,45.75]
[1726151807480,3.3114,135.9,135.8,49.44702946]
[1726151807754,45.75,135.9,135.8,45.75]
[1726151807878,4.6531,135.91,135.82,45.75]
[1726151808077,1.3419,135.91,135.82,49.49043273]
[1726151808490,45.75,135.94,135.82,49.49043273]
[1726151808677,45.75,135.94,135.84,45.75]
[1726151809078,3.3109,135.93,135.84,45.75]
[1726151809878,45.75,135.94,135.84,45.75]
[1726151809879,3.3105,135.94,135.84,45.75]
[1726151810078,1.3419,135.95,135.84,45.75]
[1726151810406,4.6521,135.95,135.89,3.3114]
[1726151810597,1.3419,135.95,135.84,45.75]
[1726151810789,1.3419,135.95,135.87,45.75]
[1726151810986,1.3671,135.96,135.87,45.75]
[1726151811186,1.3054,135.98,135.89,45.75]
[1726151811408,1.3054,135.98,135.94,3.3102]
[1726151811789,3.3091,136.0,135.91,3.64071239]
[1726151811980,48.3609,136.01,135.89,45.75]
[1726151812276,3.309,136.0,135.89,45.75]
[1726151812482,3.309,136.0,135.89,49.37856932]
[1726151812683,48.3609,136.01,135.91,45.75]
[1726151812684,5.9196,136.01,135.91,45.75]
[1726151812889,47.09,136.03,135.93,45.75]
[1726151813084,1.34,136.03,135.93,45.75]
[1726151813276,4.6482,136.03,135.98,3.3094]
[1726151813490,4.6482,136.03,135.93,45.75]
[1726151813679,1.34,136.03,135.93,45.75]
[1726151814289,47.09,136.03,135.91,45.75]
[1726151814492,45.75,136.01,135.89,45.75]
[1726151814815,2.6495,136.0,135.89,45.75]
[1726151815087,2.6495,136.0,135.93,3.3105]
[1726151815287,2.6495,136.0,135.9,3.64592527]
[1726151815493,3.3093,135.99,135.93,3.3106]
[1726151815700,2.6495,136.0,135.9,3.64592527]
[1726151816087,2.6495,136.0,135.91,45.75]
[1726151816588,5.9587,136.0,135.94,3.3103]
[1726151817101,3.3092,135.99,135.94,3.3103]
[1726151817384,3.3092,135.99,135.93,3.3106]
[1726151818891,3.3095,135.98,135.93,3.3106]
[1726151819093,2.6495,136.0,135.93,3.3106]
[1726151819875,3.3095,135.98,135.91,45.75]
[1726151820016,2.6495,136.0,135.91,45.75]
[1726151820305,2.6495,136.0,135.89,28.26]
[1726151820494,3.3095,135.98,135.93,3.3105]
[1726151820981,28.26,135.99,135.91,3.311]
[1726151821187,28.26,135.99,135.86,28.26]
[1726151821494,3.3096,135.98,135.86,28.26]
[1726151821695,28.26,135.99,135.88,28.26]
[1726151821885,28.26,135.99,135.86,28.26]
[1726151822089,3.3106,135.93,135.86,31.96751802]
[1726151822297,28.26,135.96,135.86,31.96751802]
[1726151822608,28.26,135.96,135.86,28.26]
[1726151822897,1.2916,135.95,135.86,28.26]
[1726151823096,28.26,135.99,135.93,3.3106]
[1726151823326,28.26,135.99,135.8,6.6273]
[1726151823327,1.2916,135.99,135.9,28.26]
[1726151823542,1.2916,135.99,135.92,28.26]
[1726151823942,28.26,136.04,135.93,3.61299102]
[1726151824092,1.2916,136.03,135.94,28.26]
[1726151824289,3.309,136.0,135.94,28.26]
[1726151824613,1.2916,136.03,135.92,28.26]
[1726151825009,1.2916,136.03,135.94,3.3104]
[1726151825010,3.309,136.0,135.94,3.3104]
[1726151825229,1.2916,136.03,135.92,28.26]
[1726151825431,3.3094,135.99,135.93,3.3104]
[1726151825616,1.2916,136.03,135.92,28.26]
[1726151825910,28.26,136.01,135.9,28.26]
[1726151826307,45.92,136.02,135.91,45.92]
[1726151826514,3.3089,136.01,135.95,3.3101]
[1726151826709,3.3089,136.01,135.93,45.92]
[1726151827125,1.2916,136.03,135.93,45.92]
[1726151827416,45.92,136.02,135.9,45.92]
[1726151827612,1.2916,136.03,135.93,45.92]
[1726151827914,1.2916,136.03,135.93,49.55432396]
[1726151828608,3.3087,136.02,135.96,3.3099]
[1726151828809,1.2916,136.03,135.93,45.92]
[1726151829210,3.3089,136.0,135.94,3.3103]
[1726151829713,1.2916,136.03,135.93,45.92]
[1726151829914,3.3089,136.01,135.95,3.3101]
[1726151830115,1.2916,136.03,135.93,49.50598117]
[1726151830327,3.3088,136.01,135.96,3.3099]
[1726151830538,3.3088,136.01,135.93,49.50598117]
[1726151830725,1.2916,136.03,135.93,49.50598117]
[1726151830949,3.3094,135.99,135.93,49.2306]
[1726151831132,3.3094,135.99,135.86,49.54292187]
[1726151831133,45.92,136.02,135.9,45.92]
[1726151831810,1.2916,136.03,135.86,49.54292187]
[1726151831811,1.2916,136.03,135.93,45.92]
[1726151832013,3.3085,136.02,135.93,49.66043836]
[1726151832216,1.2916,136.03,135.93,49.66043836]
[1726151832611,1.2916,136.03,135.96,3.3097]
[1726151832612,3.3086,136.02,135.96,3.3097]
[1726151832818,1.2916,136.03,135.93,49.66043836]
[1726151833318,45.92,136.02,135.9,45.92]
[1726151833633,1.2916,136.03,135.9,45.92]
[1726151833938,47.2116,136.03,135.9,45.92]
[1726151834826,3.3098,135.97,135.9,45.92]
[1726151835017,47.2116,136.03,135.9,45.92]
[1726151835251,3.3099,135.97,135.92,3.3108]
[1726151835523,47.2116,136.03,135.9,45.92]
[1726151835774,47.2116,136.03,135.93,45.92]
[1726151836731,1.2916,136.03,135.95,45.92]
[1726151836949,2.6568,136.06,135.99,45.92]
[1726151837118,1.3518,136.07,135.99,45.92]
[1726151837332,4.6593,136.07,135.99,45.92]
[1726151837537,1.3518,136.07,135.99,45.92]
[1726151838024,3.3075,136.06,135.99,45.92]
[1726151838414,3.3081,136.04,135.98,3.3094]
[1726151838821,1.3518,136.07,135.95,49.56351919]
[1726151838822,1.3518,136.07,135.96,6.13950517]
[1726151839124,3.3075,136.06,136.0,3.3087]
[1726151839330,3.3075,136.06,135.98,45.92]
[1726151839524,4.6591,136.07,136.01,3.3087]
[1726151839738,4.6591,136.07,136.0,45.92]
[1726151839739,1.3518,136.07,136.0,45.92]
[1726151840428,1.2893,136.1,136.0,45.92]
[1726151840931,4.5959,136.1,136.0,45.92]
[1726151841124,1.2893,136.1,136.0,45.92]
[1726151841420,1.2893,136.1,136.01,45.92]
[1726151841724,3.3068,136.09,136.02,3.3082]
[1726151841924,3.3068,136.09,136.01,45.92]
[1726151842126,3.3071,136.08,136.02,3.3084]
[1726151842524,1.3175,136.11,136.01,45.92]
[1726151842725,3.307,136.08,136.01,45.92]
[1726151843487,3.3072,136.07,136.01,49.2286]
[1726151843829,47.2375,136.11,136.0,3.3089]
[1726151844043,45.92,136.08,135.97,45.92]
[1726151844225,45.92,136.06,135.95,45.92]
[1726151844422,3.3086,136.02,135.95,49.2301]
[1726151844832,3.3086,136.02,135.93,3.63716553]
[1726151844833,47.2212,136.04,135.93,3.63716553]
[1726151845034,47.2212,136.04,135.94,3.3103]
[1726151845218,47.2212,136.04,135.94,3.59967656]
[1726151845524,3.3086,136.02,135.93,6.15118366]
[1726151845826,47.2212,136.04,135.94,3.75882093]
[1726151846029,47.2212,136.04,135.92,45.92]
[1726151846225,3.309,136.0,135.93,3.65337942]
[1726151846435,29.5512,136.04,135.93,3.65337942]
[1726151846730,3.3085,136.02,135.96,3.3099]
[1726151846931,1.3012,136.04,135.96,3.61844524]
[1726151847122,1.3012,136.04,135.94,28.25]
[1726151847446,1.3012,136.04,135.97,3.3097]
[1726151847816,1.3012,136.04,135.96,3.6544826]
[1726151848017,1.3012,136.04,135.94,28.25]
[1726151848244,29.5512,136.04,135.92,28.25]
[1726151848426,28.25,136.01,135.9,28.25]
[1726151849032,3.3097,135.97,135.92,3.3108]
[1726151849226,28.25,136.01,135.9,28.25]
[1726151849532,28.25,136.01,135.92,3.3108]
[1726151849533,3.3095,135.98,135.92,3.3108]
[1726151849732,3.3095,135.98,135.9,28.25]
[1726151850235,28.25,136.01,135.9,28.25]
[1726151850646,3.3096,135.98,135.92,3.3107]
[1726151851626,3.3096,135.98,135.93,3.3106]
[1726151852331,3.3093,135.99,135.93,3.3106]
[1726151852530,29.5512,136.04,135.94,3.75487383]
[1726151852736,29.5512,136.04,135.92,28.25]
[1726151853039,3.3088,136.01,135.92,28.25]
[1726151853227,1.3012,136.04,135.94,28.25]
[1726151853626,1.3012,136.04,135.97,3.3097]
[1726151854340,1.3012,136.04,135.96,3.3098]
[1726151854639,1.3012,136.04,135.94,28.25]
[1726151855024,1.3012,136.04,135.94,32.00937913]
[1726151855949,3.3087,136.02,135.94,32.00937913]
[1726151856536,1.3012,136.04,135.94,32.00937913]
[1726151857734,3.3089,136.01,135.94,32.00937913]
[1726151857942,28.25,136.03,135.92,28.25]
[1726151858328,28.25,136.03,135.93,3.66220489]
[1726151858432,3.309,136.0,135.95,3.3099]
[1726151858936,1.3012,136.04,135.9,28.25]
[1726151858937,28.25,136.01,135.9,28.25]
[1726151859348,29.5512,136.04,135.92,28.25]
[1726151859649,29.5512,136.04,135.86,28.25]
[1726151859650,1.3012,136.04,135.95,28.25]
[1726151860442,4.6093,136.04,135.99,3.3092]
[1726151860855,1.3896,136.05,135.97,28.25]
[1726151861028,4.6975,136.05,135.99,3.309]
[1726151861938,3.3081,136.04,135.99,3.309]
[1726151862238,28.25,136.09,136.0,3.3089]
[1726151862436,1.3702,136.08,136.0,3.3089]
[1726151862747,3.3076,136.06,136.0,3.3089]
[1726151863238,3.3077,136.05,136.0,3.3089]
[1726151863557,1.3702,136.08,135.99,28.25]
[1726151863753,1.3702,136.08,136.01,28.25]
[1726151864049,28.25,136.09,135.89,13.9713]
[1726151864238,1.3421,136.07,135.97,28.25]
[1726151864448,1.3421,136.07,135.96,3.64990072]
[1726151864449,29.5921,136.07,135.96,3.64990072]
[1726151864644,29.5921,136.07,135.97,3.3096]
[1726151864843,29.5921,136.07,135.97,3.62931097]
[1726151865148,29.5921,136.07,135.99,3.3092]
[1726151865343,1.3421,136.07,135.99,3.3092]
[1726151865539,1.3421,136.07,136.01,3.3085]
[1726151865741,1.3421,136.07,135.97,28.25]
[1726151866179,3.3081,136.04,135.99,3.309]
[1726151866333,1.3421,136.07,135.99,3.309]
[1726151866557,1.3421,136.07,135.97,28.25]
[1726151866744,3.3079,136.05,135.97,28.25]
[1726151867044,1.3421,136.07,135.97,28.25]
[1726151867942,3.3078,136.05,136.0,3.3089]
[1726151868146,1.3421,136.07,135.97,28.25]
[1726151868640,3.3079,136.05,135.97,28.25]
[1726151868837,1.3421,136.07,135.97,28.25]
[1726151869147,3.3076,136.06,136.0,3.3088]
[1726151869347,1.3421,136.07,135.97,28.25]
[1726151869649,1.3421,136.07,135.99,28.25]
[1726151869848,3.3076,136.06,136.0,3.3088]
[1726151870059,3.3076,136.06,136.01,3.7464157]
[1726151870559,3.3078,136.05,136.01,3.61333725]
[1726151871250,1.3421,136.07,136.01,3.61333725]
[1726151871559,1.3421,136.07,135.99,3.3091]
[1726151871746,3.3081,136.04,135.99,3.3091]
[1726151872051,1.3421,136.07,135.97,28.25]
[1726151872567,1.3421,136.07,135.93,3.74568046]
[1726151872568,28.25,136.02,135.93,3.74568046]
[1726151872750,28.25,136.02,135.84,10.32954881]
[1726151872751,1.3453,136.01,135.89,57.20321409]
[1726151872947,1.3453,136.01,135.9,28.95321409]
[1726151873148,1.3453,136.01,135.93,3.3106]
[1726151873341,1.3453,136.01,135.92,3.74347474]
[1726151873562,1.3908,136.0,135.92,3.74347474]
[1726151873750,3.3098,135.97,135.92,7.05417474]
[1726151873965,1.3908,136.0,135.9,21.01777633]
[1726151874250,1.3908,136.0,135.91,6.17171544]
[1726151874445,1.3908,136.0,135.91,9.80563941]
[1726151874646,1.3908,136.0,135.91,14.77228566]
[1726151875463,1.3908,136.0,135.92,6.17171544]
[1726151875655,3.3093,135.99,135.94,3.3102]
[1726151876049,3.3097,135.97,135.91,14.77228566]
[1726151876253,3.3097,135.97,135.91,9.80563941]
[1726151876443,1.3908,136.0,135.91,14.77228566]
[1726151876662,3.3096,135.98,135.92,6.17171544]
[1726151876859,1.3908,136.0,135.91,8.60057022]
[1726151877054,1.3908,136.0,135.91,3.63392397]
[1726151877247,3.3094,135.99,135.94,3.3103]
[1726151877454,3.3094,135.99,135.94,7.00430673]
[1726151878245,1.3908,136.0,135.94,3.69400673]
[1726151878548,1.3453,136.01,135.94,6.17608185]
[1726151878746,1.3453,136.01,135.93,4.96718686]
[1726151878943,3.3091,136.0,135.95,3.31]
[1726151879160,1.3453,136.01,135.94,9.78720496]
[1726151879553,2.6609,136.03,135.95,6.17153744]
[1726151879666,2.6609,136.03,135.95,4.96718686]
[1726151880059,3.3087,136.01,135.97,3.3096]
[1726151880584,228.0,136.08,136.0,28.25]
[1726151880780,1.3501,136.09,136.0,28.25]
[1726151881058,28.25,136.07,135.97,3.3096]
[1726151881256,1.3973,136.06,135.96,6.16429675]
[1726151881556,1.3973,136.06,135.97,11.12232732]
[1726151881757,1.3973,136.06,135.96,28.25]
[1726151881758,1.3973,136.06,135.95,3.66458256]
[1726151881960,28.25,136.04,135.96,11.12398209]
[1726151882152,28.25,136.04,135.95,14.43408209]
[1726151882459,1.3629,136.03,135.95,6.16505749]
[1726151882662,1.3629,136.03,135.94,28.25]
[1726151882843,1.3167,136.02,135.96,3.3097]
[1726151883475,29.5667,136.02,135.92,4.96748532]
[1726151883768,28.25,136.0,135.92,16.09828278]
[1726151883965,28.25,135.98,135.91,11.13079746]
[1726151884360,28.25,135.98,135.89,11.13079746]
[1726151884577,28.25,135.98,135.9,11.13079746]
[1726151884854,28.25,135.98,135.91,6.16885852]
[1726151884855,3.3101,135.96,135.91,6.16885852]
[1726151885058,28.25,135.96,135.91,6.16885852]
[1726151885368,28.25,135.96,135.84,28.25]
[1726151885369,2.6407,135.95,135.84,28.25]
[1726151885657,2.6407,135.95,135.85,28.97631556]
[1726151885889,2.6407,135.95,135.86,11.1450227]
[1726151886070,3.3109,135.92,135.87,6.17694366]
[1726151886257,2.6407,135.95,135.86,4.96807904]
[1726151886459,3.3107,135.93,135.87,3.3119]
[1726151887165,3.3104,135.94,135.88,3.3118]
[1726151887373,2.6407,135.95,135.86,33.21862834]
[1726151887551,2.6407,135.95,135.87,11.1490319]
[1726151887746,2.6407,135.95,135.88,6.18000745]
[1726151888170,2.6407,135.95,135.87,11.14777547]
[1726151888554,2.6407,135.95,135.88,6.17875102]
[1726151888759,2.6407,135.95,135.88,9.84595737]
[1726151888955,2.6407,135.95,135.89,6.17875102]
[1726151889156,2.6407,135.95,135.9,3.3112]
[1726151889355,2.6407,135.95,135.88,14.81498182]
[1726151889775,2.6407,135.95,135.9,3.3112]
[1726151890765,5.9509,135.95,135.89,3.3116]
[1726151891385,2.6407,135.95,135.9,3.3114]
[1726151891973,5.9509,135.95,135.9,3.3114]
[1726151892663,2.6407,135.95,135.88,3.66720635]
[1726151892961,2.6407,135.95,135.88,28.25]
[1726151893157,1.3077,135.95,135.88,32.01490066]
[1726151893460,1.3077,135.95,135.88,3.76490066]
[1726151893669,1.3077,135.95,135.87,11.15107663]
[1726151893851,2.6343,135.99,135.92,28.25]
[1726151894146,1.3304,136.02,135.94,28.25]
[1726151894471,5.9919,136.05,135.99,3.3089]
[1726151894662,2.684,136.05,135.96,28.25]
[1726151894963,1.3304,136.07,136.0,28.25]
[1726151895564,1.3304,136.07,135.98,28.25]
[1726151895769,1.3304,136.07,135.99,3.69227941]
[1726151895955,1.3304,136.07,135.98,28.25]
[1726151896357,4.6378,136.07,135.98,31.86654411]
[1726151896762,3.3079,136.05,135.98,3.3094]
[1726151896967,28.25,136.06,135.97,6.16668007]
[1726151897273,3.3085,136.02,135.95,3.31]
[1726151897768,31.558,136.04,135.95,6.17107425]
[1726151897970,28.25,136.04,135.94,28.25]
[1726151898184,28.25,136.04,135.94,31.88646392]
[1726151898668,28.25,136.04,135.95,11.13408197]
[1726151899061,2.7095,136.05,135.95,6.17107528]
[1726151899279,2.7095,136.05,135.96,28.25]
[1726151899473,2.7095,136.05,135.96,39.38070874]
[1726151899676,1.41,136.05,135.97,11.13070874]
[1726151900167,1.41,136.05,136.0,3.3089]
[1726151901266,1.41,136.05,135.98,3.3094]
[1726151901469,1.41,136.05,135.97,11.12891401]
[1726151902271,28.25,136.04,135.97,11.12891401]
[1726151902464,28.25,136.04,135.97,4.96256989]
[1726151902660,3.3086,136.02,135.96,3.3098]
[1726151902967,28.25,136.02,135.95,4.96256989]
[1726151903167,1.4175,136.01,135.95,4.96256989]
[1726151903366,1.4175,136.01,135.93,3.71296228]
[1726151903567,1.4175,136.01,135.93,6.17495131]
[1726151904186,1.3828,136.0,135.89,28.25]
[1726151904366,3.3094,135.98,135.9,21.02849249]
[1726151904589,29.6328,136.0,135.91,11.14524301]
[1726151904767,1.4028,135.97,135.91,6.17703092]
[1726151905072,1.4028,135.97,135.88,28.98193144]
[1726151905281,1.4028,135.97,135.89,39.39524301]
[1726151905467,1.3828,136.0,135.94,3.3104]
[1726151905672,1.3828,136.0,135.92,31.95604954]
[1726151905877,1.3828,136.0,135.92,28.25]
[1726151906478,3.3092,135.99,135.93,3.3104]
[1726151906968,3.3097,135.97,135.91,3.311]
[1726151907245,28.25,135.99,135.87,28.25]
[1726151907376,28.25,135.99,135.88,11.15488982]
[1726151907568,3.3096,135.98,135.92,3.3108]
[1726151907770,28.25,135.99,135.89,14.8476969]
[1726151907970,28.25,135.99,135.89,3.69280708]
[1726151908170,28.25,135.99,135.92,3.3107]
[1726151908480,28.25,135.99,135.9,3.64846968]